bitfinex/quotes_SOLUSD_20250601
["timestamp","ask_amount","ask_price","bid_price","bid_amount"]
[1748818127949,14.34707759,156.5,156.45,6.39181847]
[1748818128837,14.34707759,156.49,156.45,6.39181847]
[1748818129423,14.34707759,156.5,156.45,6.39181847]
[1748818131548,14.34707759,156.49,156.45,6.39181847]
[1748818135138,14.34707759,156.5,156.45,6.39181847]
[1748818137133,14.34707759,156.48,156.45,6.39181847]
[1748818137433,14.34707759,156.48,156.44,26.0]
[1748818137434,14.34707759,156.48,156.44,32.39215542]
[1748818139037,14.34707759,156.49,156.44,32.39215542]
[1748818140442,148.9,156.5,156.44,32.39215542]
[1748818140854,148.9,156.5,156.44,48.37272304]
[1748818141539,14.34707759,156.52,156.44,48.37272304]
[1748818142756,14.34707759,156.51,156.44,48.37272304]
[1748818142952,14.34707759,156.5,156.44,48.37272304]
[1748818143341,148.9,156.53,156.44,48.37272304]
[1748818143664,14.34707759,156.5,156.44,87.73272304]
[1748818144658,14.34707759,156.49,156.44,71.75215542]
[1748818144983,163.24707759,156.48,156.44,6.39215542]
[1748818145482,163.24707759,156.47,156.43,16.63255093]
[1748818147070,148.9,156.47,156.43,16.63255093]
[1748818148777,148.9,156.47,156.43,32.61414013]
[1748818149867,148.9,156.47,156.45,6.39181847]
[1748818155574,148.9,156.51,156.45,6.39181847]
[1748818156378,148.9,156.51,156.45,22.37136465]
[1748818160203,148.9,156.51,156.46,10.24]
[1748818160584,148.9,156.51,156.47,6.39100146]
[1748818163899,148.9,156.51,156.47,48.36850513]
[1748818164206,148.9,156.51,156.47,87.62850513]
[1748818166294,148.9,156.51,156.47,45.65100146]
[1748818166485,163.24707759,156.51,156.47,6.39100146]
[1748818167800,148.9,156.51,156.47,6.39100146]
[1748818170415,148.9,156.51,156.47,45.63100146]
[1748818176090,148.9,156.51,156.47,55.87100146]
[1748818176690,148.9,156.51,156.47,71.84850513]
[1748818176892,148.9,156.51,156.48,26.0]
[1748818177121,148.9,156.51,156.49,39.22]
[1748818177321,148.9,156.55,156.49,39.22]
[1748818178297,148.9,156.55,156.5,6.38977635]
[1748818178710,163.24707759,156.55,156.5,6.38977635]
[1748818179096,14.34707759,156.54,156.5,6.38977635]
[1748818179517,14.34707759,156.53,156.5,6.38977635]
[1748818180407,14.34707759,156.53,156.49,45.61016431]
[1748818180610,14.34707759,156.52,156.47,55.83062901]
[1748818183221,14.34707759,156.51,156.47,16.63062901]
[1748818184000,14.34707759,156.52,156.47,16.63062901]
[1748818187421,14.34707759,156.51,156.47,16.63062901]
[1748818190411,14.34707759,156.51,156.47,6.39062901]
[1748818194947,14.34707759,156.5,156.46,10.2]
[1748818195124,14.34707759,156.49,156.46,10.2]
[1748818195652,14.34707759,156.5,156.46,10.2]
[1748818196017,14.34707759,156.5,156.46,16.59137579]
[1748818196433,14.34707759,156.51,156.46,16.59137579]
[1748818198443,1.5323,156.52,156.46,16.59137579]
[1748818198640,14.34707759,156.52,156.46,16.59137579]
[1748818199644,148.9,156.53,156.46,32.56990065]
[1748818199946,163.24707759,156.52,156.46,32.56990065]
[1748818200147,14.34707759,156.51,156.46,32.56990065]
[1748818200324,14.34707759,156.48,156.46,10.2]
[1748818200948,148.9,156.5,156.46,10.2]
[1748818201123,14.34707759,156.49,156.46,10.2]
[1748818201534,14.34707759,156.49,156.46,16.59131329]
[1748818201740,163.24707759,156.5,156.46,16.59131329]
[1748818203419,14.34707759,156.49,156.46,10.2]
[1748818204554,14.34707759,156.48,156.46,10.2]
[1748818205655,14.34707759,156.49,156.46,10.2]
[1748818205946,14.34707759,156.49,156.46,16.5913642]
[1748818206147,148.9,156.5,156.46,16.5913642]
[1748818206353,14.34707759,156.49,156.46,10.2]
[1748818208344,148.9,156.5,156.46,10.2]
[1748818208547,14.34707759,156.49,156.46,10.2]
[1748818208935,14.34707759,156.49,156.46,16.59136291]
[1748818209627,148.9,156.5,156.46,16.59136291]
[1748818210036,163.24707759,156.5,156.46,16.59136291]
[1748818211253,14.34707759,156.49,156.46,16.59136291]
[1748818213337,163.24707759,156.5,156.46,16.59136291]
[1748818214035,148.9,156.5,156.46,16.59136291]
[1748818214253,148.9,156.5,156.46,55.81136291]
[1748818215052,148.9,156.5,156.46,16.59136291]
[1748818215264,14.34707759,156.49,156.46,16.59136291]
[1748818216665,148.9,156.5,156.46,16.59136291]
[1748818218850,14.34707759,156.49,156.46,16.59136291]
[1748818219069,14.34707759,156.48,156.46,10.2]
[1748818219659,14.34707759,156.48,156.46,16.59130947]
[1748818220067,14.34707759,156.49,156.46,16.59130947]
[1748818220899,163.24707759,156.5,156.46,16.59130947]
[1748818223080,148.9,156.5,156.46,16.59130947]
[1748818223643,163.24707759,156.5,156.46,16.59130947]
[1748818224463,148.9,156.5,156.46,32.56983433]
[1748818225465,148.9,156.5,156.47,39.2]
[1748818225648,148.9,156.5,156.49,26.0]
[1748818226571,148.9,156.5,156.49,32.39018467]
[1748818229579,14.34707759,156.54,156.49,32.39018467]
[1748818230285,14.34707759,156.55,156.49,32.39018467]
[1748818230469,148.9,156.54,156.49,48.36564636]
[1748818232688,148.9,156.54,156.49,87.56564636]
[1748818233395,163.24707759,156.54,156.49,71.59018467]
[1748818233689,14.34707759,156.52,156.49,6.39018467]
[1748818234588,14.34707759,156.52,156.48,6.39059304]
[1748818235083,150.4464,156.54,156.48,6.39059304]
[1748818235084,14.34707759,156.53,156.48,6.39059304]
[1748818235480,148.9,156.52,156.48,6.39059304]
[1748818237296,148.9,156.52,156.48,22.36707565]
[1748818239272,148.9,156.52,156.49,10.18]
[1748818241375,148.9,156.52,156.5,6.38977635]
[1748818245071,148.9,156.52,156.5,79.18967635]
[1748818245294,148.9,156.58,156.5,127.11299902]
[1748818245508,148.9,156.58,156.54,26.0]
[1748818245674,148.9,156.58,156.55,10.18]
[1748818246176,148.9,156.58,156.56,39.2]
[1748818247967,148.9,156.58,156.57,6.38691958]
[1748818248392,148.9,156.64,156.57,22.35421855]
[1748818248774,148.9,156.64,156.58,39.18]
[1748818249397,148.9,156.64,156.59,22.35136342]
[1748818250773,148.9,156.64,156.61,6.38528829]
[1748818257204,148.9,156.64,156.61,22.34850902]
[1748818259808,163.24707759,156.64,156.61,22.34850902]
[1748818260511,163.24707759,156.64,156.61,6.38528829]
[1748818260824,14.34707759,156.62,156.6,16.56560672]
[1748818261105,14.34707759,156.63,156.6,16.56560672]
[1748818261283,14.34707759,156.62,156.6,16.56560672]
[1748818261490,14.34707759,156.63,156.6,16.56560672]
[1748818262718,14.34707759,156.62,156.6,16.56560672]
[1748818263606,14.34707759,156.61,156.6,16.56560672]
[1748818263986,14.34707759,156.61,156.54,26.0]
[1748818264211,14.34707759,156.59,156.55,10.18]
[1748818264696,14.34707759,156.61,156.55,32.5370744]
[1748818266720,14.34707759,156.62,156.55,32.5370744]
[1748818267595,14.34707759,156.6,156.55,32.5370744]
[1748818271719,14.34707759,156.61,156.55,32.5370744]
[1748818271932,14.34707759,156.62,156.55,32.5370744]
[1748818273530,14.34707759,156.6,156.55,32.5370744]
[1748818276925,14.34707759,156.61,156.55,32.5370744]
[1748818277925,14.34707759,156.62,156.55,32.5370744]
[1748818278507,163.24707759,156.63,156.55,64.47575213]
[1748818279227,163.24707759,156.63,156.58,26.0]
[1748818279443,1.6154,156.66,156.58,65.16]
[1748818279723,163.24707759,156.67,156.59,18.64964886]
[1748818279922,14.34707759,156.66,156.6,10.16]
[1748818280915,14.34707759,156.66,156.61,22.34850902]
[1748818283030,14.34707759,156.65,156.61,22.34850902]
[1748818283528,148.9,156.67,156.61,22.34850902]
[1748818283529,14.34707759,156.64,156.61,6.38528829]
[1748818285330,14.34707759,156.65,156.61,6.38528829]
[1748818285518,14.34707759,156.66,156.61,6.38528829]
[1748818285707,148.9,156.65,156.61,6.38528829]
[1748818286013,148.9,156.65,156.61,22.34850902]
[1748818287038,163.24707759,156.65,156.61,22.34850902]
[1748818287434,14.34707759,156.64,156.61,6.38528829]
[1748818287937,163.24707759,156.65,156.61,6.38528829]
[1748818297431,148.9,156.64,156.61,6.38528829]
[1748818301355,148.9,156.64,156.61,22.34850902]
[1748818302954,148.9,156.64,156.62,39.14]
[1748818304459,148.9,156.64,156.63,6.38447296]
[1748818306359,148.9,156.69,156.63,22.34565536]
[1748818306661,148.9,156.69,156.64,39.14]
[1748818306845,148.9,156.69,156.65,10.16]
[1748818307734,148.9,156.69,156.66,6.38325035]
[1748818312354,148.9,156.68,156.66,6.38325035]
[1748818314962,148.9,156.72,156.67,39.12]
[1748818315148,148.9,156.72,156.67,65.12]
[1748818316150,148.9,156.72,156.68,22.33852437]
[1748818316360,148.9,156.72,156.69,39.12]
[1748818317555,148.9,156.72,156.7,6.38162093]
[1748818320053,148.9,156.72,156.7,16.54162093]
[1748818320379,148.9,156.72,156.71,39.12]
[1748818321053,148.9,156.72,156.71,45.5012137]
[1748818323050,148.9,156.75,156.71,61.45424796]
[1748818323759,148.9,156.81,156.74,26.0]
[1748818324066,148.9,156.81,156.75,49.26]
[1748818324571,148.9,156.81,156.76,6.37917836]
[1748818324750,148.9,156.81,156.77,39.1]
[1748818326551,148.9,156.81,156.78,6.37836458]
[1748818327274,163.24707759,156.81,156.78,6.37836458]
[1748818328682,14.34707759,156.79,156.77,6.37865971]
[1748818328865,163.24707759,156.78,156.75,16.53920426]
[1748818329281,148.9,156.78,156.75,16.53920426]
[1748818329665,148.9,156.78,156.75,55.63920426]
[1748818332557,163.24707759,156.78,156.75,16.53920426]
[1748818332983,148.9,156.78,156.75,16.53920426]
[1748818333497,148.9,156.78,156.75,32.48816757]
[1748818333668,148.9,156.78,156.75,71.56816757]
[1748818334381,163.24707759,156.78,156.75,55.61920426]
[1748818334579,148.9,156.78,156.75,16.53920426]
[1748818338969,148.9,156.77,156.75,16.53920426]
[1748818343406,148.9,156.81,156.76,39.08]
[1748818343589,14.34707759,156.85,156.76,39.08]
[1748818343789,148.9,156.84,156.76,39.08]
[1748818344597,148.9,156.84,156.77,22.32570006]
[1748818344800,148.9,156.84,156.78,39.08]
[1748818345590,148.9,156.84,156.78,65.08]
[1748818346702,148.9,156.84,156.79,22.32285221]
[1748818346903,148.9,156.84,156.8,49.22]
[1748818347984,148.9,156.84,156.81,6.37714431]
[1748818349407,148.9,156.84,156.81,22.32000509]
[1748818354405,148.9,156.84,156.81,6.37714431]
[1748818355916,163.24707759,156.84,156.81,6.37714431]
[1748818356315,148.9,156.84,156.81,6.37714431]
[1748818356608,148.9,156.83,156.81,6.37714431]
[1748818367497,148.9,156.86,156.82,39.06]
[1748818368730,148.9,156.86,156.83,22.31715869]
[1748818368898,148.9,156.86,156.84,39.06]
[1748818369099,148.9,156.9,156.85,10.14]
[1748818369317,148.9,156.89,156.85,10.14]
[1748818370517,148.9,156.89,156.86,6.37511156]
[1748818370518,163.24707759,156.89,156.86,6.37511156]
[1748818370718,163.24707759,156.89,156.85,10.14]
[1748818370719,163.24707759,156.88,156.85,16.51538161]
[1748818370943,14.34707759,156.87,156.85,16.51538161]
[1748818371107,202.30707759,156.88,156.85,16.51538161]
[1748818374520,148.9,156.87,156.85,16.51538161]
[1748818374714,148.9,156.87,156.85,6.37538161]
[1748818375922,148.9,156.87,156.82,22.3181813]
[1748818382924,148.9,156.87,156.83,39.04]
[1748818384922,148.9,156.87,156.84,22.31573577]
[1748818385627,1.6377,156.91,156.84,22.31573577]
[1748818385958,1.6377,156.91,156.85,39.04]
[1748818386152,1.6377,156.91,156.86,10.12]
[1748818386648,163.24707759,156.92,156.86,10.12]
[1748818386649,148.9,156.92,156.86,10.12]
[1748818386949,148.9,156.92,156.87,6.37470516]
[1748818388335,148.9,156.92,156.87,22.31146808]
[1748818389227,148.9,156.91,156.87,22.31146808]
[1748818395234,148.9,156.9,156.87,22.31146808]
[1748818403076,148.9,156.94,156.87,119.20499392]
[1748818403281,148.9,156.94,156.9,26.0]
[1748818403459,148.9,156.94,156.91,49.14]
[1748818403658,148.9,156.94,156.92,6.37267397]
[1748818407184,148.9,156.99,156.92,22.3043589]
[1748818407478,148.9,156.98,156.93,39.02]
[1748818408659,148.9,156.98,156.94,22.30151649]
[1748818410369,148.9,156.98,156.94,6.37186185]
[1748818412985,148.9,156.97,156.94,6.37186185]
[1748818424915,148.9,156.96,156.94,6.37186185]
[1748818427212,148.9,156.96,156.93,22.30293761]
[1748818431102,148.9,156.96,156.94,39.0]
[1748818432205,148.9,156.96,156.95,6.37145587]
[1748818442406,48.11988328,156.99,156.95,6.37145587]
[1748818443110,1.571,157.0,156.95,6.37145587]
[1748818443416,40.551,157.0,156.95,15.92863969]
[1748818444196,1.571,157.0,156.95,15.92863969]
[1748818447099,1.571,157.0,156.95,22.30009556]
[1748818448411,148.9,156.99,156.95,22.30009556]
[1748818453619,158.03988328,156.99,156.95,6.37145587]
[1748818453822,9.13988328,156.98,156.95,6.37145587]
[1748818454515,148.9,156.97,156.95,6.37145587]
[1748818455532,158.03988328,156.97,156.94,16.47174799]
[1748818456620,158.03988328,156.97,156.94,6.37174799]
[1748818457029,148.9,156.97,156.92,22.3035121]
[1748818458920,158.03988328,156.96,156.92,22.3035121]
[1748818459230,9.13988328,156.95,156.92,6.37267397]
[1748818459427,148.9,156.94,156.92,6.37267397]
[1748818461058,158.03988328,156.94,156.92,6.37267397]
[1748818461941,158.03988328,156.93,156.88,6.37429882]
[1748818462244,9.13988328,156.9,156.88,6.37429882]
[1748818463019,9.13988328,156.89,156.87,10.1]
[1748818463215,148.9,156.88,156.86,6.37475724]
[1748818464347,148.9,156.88,156.84,6.3759245]
[1748818469035,148.9,156.87,156.84,6.3759245]
[1748818469348,148.9,156.87,156.84,22.31573577]
[1748818473650,148.9,156.92,156.88,26.0]
[1748818473841,148.9,156.92,156.88,75.08]
[1748818474240,148.9,156.92,156.88,76.6622]
[1748818474645,148.9,156.92,156.89,22.30862387]
[1748818474844,148.9,156.92,156.9,38.98]
[1748818476234,148.9,156.92,156.91,6.3730801]
[1748818485745,148.9,156.92,156.91,26.0]
[1748818486851,38.98,156.96,156.92,22.3043589]
[1748818487163,38.96,156.96,156.92,22.3043589]
[1748818487370,148.9,156.98,156.92,22.3043589]
[1748818487547,38.96,156.96,156.92,22.3043589]
[1748818488654,148.9,156.98,156.92,22.3043589]
[1748818488980,38.96,156.97,156.92,22.3043589]
[1748818491338,148.9,156.98,156.92,22.3043589]
[1748818491542,38.96,156.97,156.92,22.3043589]
[1748818492779,148.9,156.96,156.92,22.3043589]
[1748818495778,187.86,156.96,156.92,22.3043589]
[1748818497154,148.9,156.96,156.92,22.3043589]
[1748818498666,148.9,156.95,156.92,22.3043589]
[1748818500958,148.9,156.95,156.92,6.37267397]
[1748818501169,187.86,156.95,156.92,6.37267397]
[1748818503377,187.86,156.95,156.92,22.3043589]
[1748818506861,148.9,156.95,156.92,22.3043589]
[1748818509797,148.9,156.95,156.92,6.37267397]
[1748818510475,148.9,156.94,156.92,6.37267397]
[1748818510991,38.94,156.93,156.91,16.4529887]
[1748818516492,148.9,156.92,156.91,16.4529887]
[1748818528273,38.94,156.95,156.91,16.4529887]
[1748818529296,38.94,156.95,156.91,6.3729887]
[1748818529874,38.94,156.95,156.9,6.37348629]
[1748818533084,38.94,156.95,156.89,6.37378554]
[1748818533085,158.041118,156.91,156.89,6.37378554]
[1748818533285,158.041118,156.91,156.82,91.72]
[1748818533286,158.041118,156.9,156.83,6.37633105]
[1748818533477,9.141118,156.89,156.83,6.37633105]
[1748818533678,9.141118,156.88,156.83,6.37633105]
[1748818534085,9.141118,156.89,156.83,22.31633661]
[1748818534279,148.9,156.9,156.83,54.1979919]
[1748818534480,148.9,156.9,156.84,26.0]
[1748818535994,148.9,156.9,156.85,22.31431303]
[1748818543203,148.9,156.89,156.85,22.31431303]
[1748818544805,148.9,156.89,156.87,6.37470516]
[1748818563118,148.9,156.89,156.88,38.94]
[1748818563430,148.9,156.97,156.88,38.94]
[1748818563634,148.9,156.96,156.88,38.94]
[1748818564514,148.9,156.96,156.91,26.0]
[1748818564716,148.9,156.96,156.92,49.0]
[1748818565099,148.9,156.96,156.93,22.30293761]
[1748818570131,148.9,156.96,156.93,6.37226789]
[1748818570311,18.64964886,156.95,156.93,6.37226789]
[1748818570508,18.64964886,156.93,156.88,10.06]
[1748818570716,18.64964886,156.93,156.88,16.43429882]
[1748818570908,27.79076686,156.93,156.88,16.43429882]
[1748818571835,18.64964886,156.93,156.88,32.37004588]
[1748818573934,163.19133722,156.92,156.88,16.43429882]
[1748818574144,18.64964886,156.91,156.88,16.43429882]
[1748818575639,148.9,156.92,156.88,32.37004588]
[1748818581430,148.9,156.92,156.88,58.37004588]
[1748818581632,148.9,156.96,156.89,38.92]
[1748818583050,148.9,156.96,156.9,22.30720203]
[1748818584659,18.64964886,156.95,156.9,22.30720203]
[1748818587444,148.9,156.94,156.9,22.30720203]
[1748818596043,148.9,156.94,156.91,38.9]
[1748818598361,148.9,156.94,156.92,6.37267397]
[1748818600864,148.9,156.94,156.92,16.43267397]
[1748818605448,148.9,156.94,156.92,42.43267397]
[1748818624880,148.9,156.94,156.93,16.41226789]
[1748818627995,18.64964886,156.94,156.9,6.37348629]
[1748818630576,38.88,156.95,156.9,22.30720203]
[1748818634099,18.64964886,156.94,156.9,22.30720203]
[1748818634300,18.64964886,156.94,156.9,6.37348629]
[1748818637692,148.9,156.93,156.9,6.37348629]
[1748818643391,148.9,156.92,156.88,6.37429882]
[1748818643588,27.78998086,156.91,156.88,16.41429882]
[1748818645284,27.78998086,156.91,156.88,10.04]
[1748818645485,27.78998086,156.89,156.86,6.37510748]
[1748818645699,27.78998086,156.89,156.84,10.04]
[1748818645700,148.9,156.88,156.84,16.41561049]
[1748818646113,18.64964886,156.87,156.84,16.41561049]
[1748818646328,148.9,156.86,156.84,16.41561049]
[1748818649715,148.9,156.85,156.84,16.41561049]
[1748818655621,18.64964886,156.87,156.84,16.41561049]
[1748818656424,53.20263855,156.89,156.84,16.41561049]
[1748818656727,18.64964886,156.88,156.84,16.41561049]
[1748818660718,26.0,156.91,156.84,16.41561049]
[1748818660919,148.9,156.9,156.84,32.35542176]
[1748818661217,148.9,156.9,156.85,38.9]
[1748818663038,148.9,156.9,156.86,6.37511156]
[1748818663527,148.9,156.9,156.86,22.31289047]
[1748818664631,148.9,156.89,156.86,22.31289047]
[1748818666614,148.9,156.93,156.89,26.0]
[1748818666811,148.9,156.93,156.9,10.04]
[1748818667215,148.9,156.93,156.91,6.3730801]
[1748818674348,181.85228741,156.92,156.87,15.93609531]
[1748818674644,148.9,156.92,156.88,22.31004588]
[1748818685257,148.9,156.92,156.9,6.37348629]
[1748818695451,148.9,156.92,156.91,38.86]
[1748818695759,1.5272,157.0,156.94,26.0]
[1748818695760,150.4272,157.0,156.94,26.0]
[1748818695940,150.4272,157.0,156.95,10.02]
[1748818696662,150.4272,157.0,156.96,6.37104994]
[1748818699660,164.70447896,157.0,156.96,6.37104994]
[1748818701861,18.64964886,156.99,156.96,6.37104994]
[1748818705753,148.9,156.98,156.96,6.37104994]
[1748818706666,148.9,157.01,156.97,64.86]
[1748818707576,148.9,157.01,156.98,22.29583385]
[1748818711773,148.9,157.04,156.99,38.84]
[1748818711980,148.9,157.04,157.0,10.02]
[1748818713043,148.9,157.04,157.01,6.36902108]
[1748818713282,148.9,157.04,157.01,22.29157378]
[1748818713484,148.9,157.04,157.01,61.13157378]
[1748818713648,150.4836,157.09,157.03,26.0]
[1748818713970,150.4836,157.09,157.03,64.84]
[1748818714848,148.9,157.09,157.04,22.28731533]
[1748818715062,148.9,157.09,157.05,10.02]
[1748818716850,148.9,157.09,157.06,6.3669935]
[1748818721564,148.9,157.09,157.06,22.28447726]
[1748818736872,148.9,157.09,157.07,10.02]
[1748818738403,148.9,157.09,157.08,6.36618283]
[1748818755883,148.9,157.12,157.08,6.36618283]
[1748818756088,148.9,157.16,157.11,26.0]
[1748818756286,148.9,157.16,157.15,26.0]
[1748818756515,0.0817803,157.17,157.15,64.78]
[1748818757317,0.0817803,157.17,157.16,6.36294222]
[1748818760605,0.0817803,157.17,157.14,22.27311142]
[1748818767400,0.0817803,157.17,157.14,6.36375206]
[1748818770929,148.9,157.16,157.14,6.36375206]
[1748818784848,148.9,157.16,157.15,16.34334712]
[1748818788644,0.0817803,157.17,157.15,55.10334712]
[1748818789525,0.0817803,157.17,157.15,85.10334712]
[1748818791749,18.64964886,157.26,157.18,26.0]
[1748818792046,150.491,157.27,157.18,26.0]
[1748818792047,150.491,157.27,157.19,38.76]
[1748818792349,150.491,157.27,157.2,9.98]
[1748818792648,150.491,157.27,157.21,38.76]
[1748818792857,150.491,157.27,157.22,22.26179874]
[1748818793855,150.491,157.27,157.22,52.26179874]
[1748818795730,18.64964886,157.26,157.22,52.26179874]
[1748818796383,18.64964886,157.26,157.22,36.36051392]
[1748818797542,148.9,157.25,157.22,36.36051392]
[1748818798259,148.9,157.25,157.21,6.36091851]
[1748818798942,148.9,157.25,157.22,30.0]
[1748818800265,148.9,157.24,157.22,30.0]
[1748818800460,18.64964886,157.23,157.22,30.0]
[1748818800655,18.64964886,157.23,157.22,36.36041851]
[1748818801763,18.64964886,157.25,157.22,36.36041851]
[1748818802063,47.85450578,157.26,157.22,6.36041851]
[1748818802064,148.9,157.26,157.22,6.36041851]
[1748818802644,148.9,157.26,157.21,22.26288068]
[1748818804639,148.9,157.26,157.22,38.74]
[1748818806667,18.64964886,157.29,157.23,22.26038287]
[1748818807042,18.64964886,157.29,157.24,38.74]
[1748818807243,18.64964886,157.29,157.25,9.98]
[1748818808165,18.64964886,157.29,157.26,6.35889609]
[1748818812458,148.9,157.28,157.26,6.35889609]
[1748818816749,148.9,157.28,157.26,45.07889609]
[1748818817771,18.64964886,157.32,157.26,60.97613632]
[1748818817772,148.9,157.31,157.26,60.97613632]
[1748818819175,148.9,157.31,157.27,26.0]
[1748818819371,148.9,157.31,157.28,38.72]
[1748818821382,1.501,157.35,157.29,22.25189141]
[1748818821586,148.9,157.36,157.3,48.7]
[1748818821975,18.64964886,157.35,157.3,48.7]
[1748818823479,18.64964886,157.35,157.31,6.35687496]
[1748818823681,18.64964886,157.35,157.31,22.24906236]
[1748818824769,148.9,157.36,157.31,22.24906236]
[1748818826586,148.9,157.36,157.32,38.72]
[1748818827608,148.9,157.36,157.33,6.35606686]
[1748818827799,148.9,157.35,157.33,6.35606686]
[1748818831988,148.9,157.35,157.34,38.7]
[1748818832911,148.9,157.35,157.34,45.05566289]
[1748818833199,1.5484,157.39,157.34,60.94482012]
[1748818833401,1.5484,157.39,157.35,9.96]
[1748818834481,18.64964886,157.38,157.35,9.96]
[1748818834777,18.64964886,157.38,157.36,6.3548551]
[1748818835105,10.64299215,157.39,157.36,6.3548551]
[1748818835406,34.40636568,157.39,157.36,6.3548551]
[1748818836295,20.19804886,157.39,157.36,6.3548551]
[1748818836678,148.9,157.4,157.36,22.24199287]
[1748818836881,148.9,157.39,157.36,22.24199287]
[1748818840788,148.9,157.39,157.38,26.0]
[1748818840984,18.64964886,157.45,157.38,26.0]
[1748818841291,148.9,157.46,157.39,38.7]
[1748818841701,148.9,157.46,157.4,9.96]
[1748818842009,148.9,157.46,157.41,64.7]
[1748818842426,0.8832891,157.49,157.45,26.0]
[1748818842587,0.8832891,157.49,157.46,74.64]
[1748818842784,0.8832891,157.49,157.47,6.35041595]
[1748818844613,0.8832891,157.49,157.47,36.35041595]
[1748818844998,15.09160592,157.49,157.47,36.35041595]
[1748818846420,32.85796568,157.48,157.47,36.35041595]
[1748818846591,18.64964886,157.48,157.47,6.35041595]
[1748818847487,32.85796568,157.48,157.46,16.31081141]
[1748818847683,14.20831682,157.47,157.46,16.31081141]
[1748818847889,32.85796568,157.48,157.46,16.31081141]
[1748818848501,14.20831682,157.48,157.46,16.31081141]
[1748818849892,0.8832891,157.49,157.46,16.31081141]
[1748818850291,14.20831682,157.48,157.46,16.31081141]
[1748818851015,148.9,157.47,157.46,16.31081141]
[1748818851800,163.10831682,157.47,157.46,16.31081141]
[1748818852006,148.9,157.46,157.43,6.35202947]
[1748818852208,14.20831682,157.44,157.43,6.35202947]
[1748818853617,14.20831682,157.45,157.43,6.35202947]
[1748818853991,163.10831682,157.44,157.42,16.3124069]
[1748818854198,14.20831682,157.43,157.42,6.3524069]
[1748818854395,148.9,157.42,157.38,9.96]
[1748818854597,14.20831682,157.41,157.38,9.96]
[1748818854822,163.10831682,157.4,157.38,9.96]
[1748818855203,148.9,157.4,157.38,16.3138937]
[1748818855998,163.10831682,157.4,157.38,16.3138937]
[1748818856615,148.9,157.4,157.38,16.3138937]
[1748818857607,163.10831682,157.4,157.38,16.3138937]
[1748818857919,148.9,157.4,157.38,16.3138937]
[1748818860624,163.10831682,157.4,157.38,16.3138937]
[1748818862309,148.9,157.4,157.38,16.3138937]
[1748818867134,148.9,157.45,157.38,32.19901252]
[1748818868013,148.9,157.45,157.38,63.96925016]
[1748818870645,163.10831682,157.45,157.38,32.19901252]
[1748818870946,14.20831682,157.44,157.38,70.89901252]
[1748818871164,32.85796568,157.44,157.38,32.19901252]
[1748818871314,14.20831682,157.42,157.38,16.3138937]
[1748818871518,148.9,157.41,157.38,16.3138937]
[1748818872344,148.9,157.4,157.38,16.3138937]
[1748818874918,148.9,157.4,157.38,55.0138937]
[1748818878446,148.9,157.48,157.39,7.6491]
[1748818878651,148.9,157.48,157.4,38.7]
[1748818879636,148.9,157.48,157.41,22.23492789]
[1748818879834,148.9,157.48,157.42,38.72]
[1748818880036,148.9,157.47,157.43,9.96]
[1748818881147,148.9,157.47,157.44,6.35162601]
[1748818881531,148.9,157.47,157.44,22.23069105]
[1748818884146,148.9,157.47,157.44,6.35162601]
[1748818884349,163.10831682,157.47,157.44,6.35162601]
[1748818884754,14.20831682,157.45,157.43,16.31191341]
[1748818885071,14.20831682,157.45,157.4,6.35324015]
[1748818885634,148.9,157.44,157.4,6.35324015]
[1748818885839,163.10831682,157.43,157.4,6.35324015]
[1748818886339,148.9,157.42,157.4,6.35324015]
[1748818887558,163.10831682,157.42,157.4,6.35324015]
[1748818887942,148.9,157.42,157.4,6.35324015]
[1748818893554,148.9,157.46,157.41,38.74]